bitfinex-derivatives/quotes_BTCF0:USTF0_20241224
["timestamp","ask_amount","ask_price","bid_price","bid_amount"]
[1735060924527,0.00672797,98767.0,98760.0,0.54578241]
[1735060924729,0.00672797,98766.0,98760.0,0.13291648]
[1735060924923,0.00672797,98765.0,98760.0,0.13291648]
[1735060925129,0.00672797,98764.0,98760.0,0.13691648]
[1735060925331,0.00672797,98763.0,98760.0,0.01875479]
[1735060925633,0.00672797,98762.0,98760.0,0.01875479]
[1735060925833,0.00672797,98761.0,98760.0,0.01875479]
[1735060926619,0.00672544,98761.0,98760.0,0.01875479]
[1735060927230,0.00772544,98761.0,98760.0,0.01875479]
[1735060927423,0.00772544,98761.0,98760.0,0.06942479]
[1735060927628,0.12137853,98782.0,98781.0,0.05066]
[1735060927827,0.12137853,98782.0,98781.0,0.41146]
[1735060928730,0.36136001,98790.0,98781.0,0.3608]
[1735060929031,0.006,98782.0,98781.0,0.41146]
[1735060929929,0.3608,98790.0,98783.0,0.050658]
[1735060929930,0.3668,98790.0,98783.0,0.050658]
[1735060930435,0.3608,98790.0,98783.0,0.050658]
[1735060931729,0.3608,98790.0,98784.0,0.050658]
[1735060932036,0.3668,98790.0,98784.0,0.050658]
[1735060932243,0.3678,98790.0,98784.0,0.050658]
[1735060933132,0.3688,98790.0,98785.0,0.050657]
[1735060934741,0.3688,98790.0,98788.0,0.050656]
[1735060935032,0.1046,98814.0,98789.0,0.3608]
[1735060935233,0.1046,98814.0,98811.0,0.3608]
[1735060935632,0.12137853,98818.0,98811.0,0.3608]
[1735060936836,0.12137853,98818.0,98805.0,0.11816169]
[1735060936837,0.009,98814.0,98805.0,0.11816169]
[1735060937034,0.009,98814.0,98803.0,0.3608]
[1735060937830,0.009,98814.0,98811.0,0.3608]
[1735060938239,0.063641,98818.0,98811.0,0.3618]
[1735060938438,0.3608,98812.0,98811.0,0.001]
[1735060938631,0.3608,98812.0,98793.0,0.3608]
[1735060938832,0.11816169,98810.0,98803.0,0.001]
[1735060939138,0.11816169,98810.0,98793.0,0.37568861]
[1735060939335,0.05065,98801.0,98793.0,0.37568861]
[1735060939648,0.11948636,98800.0,98793.0,0.37568861]
[1735060939836,0.00668626,98799.0,98793.0,0.37568861]
[1735060940037,0.1128,98800.0,98793.0,0.37568861]
[1735060940038,0.00668626,98798.0,98793.0,0.37568861]
[1735060940342,0.00668626,98797.0,98793.0,0.37568861]
[1735060940637,0.00668626,98796.0,98793.0,0.37568861]
[1735060940837,0.00668626,98795.0,98793.0,0.37568861]
[1735060941137,0.00668626,98794.0,98793.0,0.37568861]
[1735060942743,0.00968626,98794.0,98793.0,0.37568861]
[1735060943431,0.00969391,98794.0,98793.0,0.37568861]
[1735060944228,0.00669391,98794.0,98793.0,0.37568861]
[1735060944432,0.01069391,98794.0,98793.0,0.37568861]
[1735060944639,0.01069391,98794.0,98775.0,0.050662]
[1735060944842,0.00669391,98793.0,98782.0,0.3608]
[1735060945143,0.00669391,98792.0,98782.0,0.3608]
[1735060945440,0.00669391,98791.0,98782.0,0.3608]
[1735060945630,0.00669391,98790.0,98782.0,0.3608]
[1735060945827,0.00669391,98789.0,98782.0,0.3608]
[1735060946033,0.00669098,98788.0,98782.0,0.3618]
[1735060946331,0.00669098,98787.0,98782.0,0.3618]
[1735060946532,0.00669098,98786.0,98782.0,0.3618]
[1735060946742,0.00669098,98785.0,98782.0,0.3618]
[1735060947039,0.00669098,98784.0,98782.0,0.3618]
[1735060947347,0.00669098,98783.0,98782.0,0.3618]
[1735060947536,0.00669098,98783.0,98782.0,0.3648]
[1735060948234,0.11816169,98810.0,98782.0,0.3648]
[1735060948235,0.12102262,98810.0,98798.0,0.050651]
[1735060948430,0.12102262,98810.0,98809.0,0.3608]
[1735060948632,0.12102262,98810.0,98809.0,0.411445]
[1735060949645,0.2188,98821.0,98809.0,0.3608]
[1735060949944,0.2188,98821.0,98820.0,0.3608]
[1735060950847,0.2228,98821.0,98820.0,0.3608]
[1735060951344,0.2318,98821.0,98820.0,0.3618]
[1735060951548,0.2338,98821.0,98820.0,0.3618]
[1735060952034,0.015,98821.0,98820.0,0.3618]
[1735060952243,0.3338,98839.0,98820.0,0.3618]
[1735060952545,0.3338,98839.0,98830.0,0.3608]
[1735060952939,0.050634,98831.0,98830.0,0.3608]
[1735060953942,0.3398,98839.0,98830.0,0.3608]
[1735060953943,0.050634,98832.0,98830.0,0.3608]
[1735060954347,0.007,98831.0,98830.0,0.3618]
[1735060954646,0.014,98831.0,98830.0,0.3628]
[1735060954844,1.514,98831.0,98830.0,0.3628]
[1735060955051,1.507,98831.0,98830.0,0.3618]
[1735060955840,1.509,98831.0,98830.0,0.3618]
[1735060956747,1.502,98831.0,98830.0,0.3628]
[1735060957144,1.5,98831.0,98830.0,0.37641833]
[1735060957339,0.002,98831.0,98830.0,0.37641833]
[1735060957539,0.002,98831.0,98830.0,0.37541833]
[1735060957744,0.06461085,98832.0,98830.0,0.37541833]
[1735060957939,0.002,98831.0,98830.0,0.37541833]
[1735060958445,0.002,98831.0,98830.0,0.3618]
[1735060958844,0.01597685,98832.0,98830.0,0.3618]
[1735060959236,0.002,98832.0,98830.0,0.3618]
[1735060959446,0.002,98832.0,98830.0,0.412434]
[1735060959643,0.002,98832.0,98830.0,0.411434]
[1735060959843,0.002,98832.0,98830.0,0.412434]
[1735060960253,0.00665501,98831.0,98830.0,0.412434]
[1735060961549,0.00665501,98831.0,98830.0,0.416434]
[1735060962241,0.00665501,98831.0,98830.0,0.3678]
[1735060963247,0.05063,98839.0,98830.0,0.3678]
[1735060963452,0.050634,98832.0,98830.0,0.3638]
[1735060963753,0.22574999,98831.0,98830.0,0.3668]
[1735060964051,0.2191,98831.0,98830.0,0.3668]
[1735060964546,0.2191,98831.0,98830.0,0.006]
[1735060964746,0.2191,98831.0,98809.0,0.3608]
[1735060964747,0.5799,98831.0,98809.0,0.3608]
[1735060964953,0.11816169,98820.0,98809.0,0.3608]
[1735060965139,0.411437,98825.0,98809.0,0.3608]
[1735060965346,0.050639,98822.0,98811.0,0.3608]
[1735060965651,0.00664675,98821.0,98811.0,0.3608]
[1735060965848,0.00664675,98820.0,98811.0,0.3608]
[1735060966050,0.3608,98826.0,98811.0,0.3608]
[1735060966051,0.050644,98813.0,98811.0,0.3608]
[1735060966853,0.01308528,98822.0,98811.0,0.3608]
[1735060967049,0.411437,98826.0,98811.0,0.3638]
[1735060967249,0.05729142,98825.0,98811.0,0.3638]
[1735060967550,0.00665442,98824.0,98821.0,0.3608]
[1735060967745,0.00665442,98823.0,98822.0,0.050639]
[1735060969657,0.01574171,98848.0,98822.0,0.3]
[1735060969848,0.16701999,98867.0,98847.0,0.7216]
[1735060970150,0.16701999,98867.0,98857.0,0.3608]
[1735060970360,0.15127828,98867.0,98857.0,0.3608]
[1735060971162,0.002,98858.0,98857.0,0.3608]
[1735060972659,0.01574171,98879.0,98870.0,0.11816169]
[1735060972969,0.01574171,98888.0,98879.0,0.050609]
[1735060973158,0.01574171,98888.0,98878.0,0.3608]
[1735060973660,0.0128706,98898.0,98878.0,0.41141]
[1735060973661,0.01574171,98887.0,98878.0,0.41141]
[1735060973847,0.01574171,98890.0,98878.0,0.41141]
[1735060974051,0.37654171,98891.0,98878.0,0.41141]
[1735060974464,0.004,98879.0,98878.0,0.41141]
[1735060974963,0.004,98879.0,98878.0,0.3608]
[1735060975452,0.01032529,98879.0,98878.0,0.3608]
[1735060975646,0.01232529,98879.0,98878.0,0.3608]
[1735060975857,0.00832529,98879.0,98878.0,0.3608]
[1735060976060,0.00832529,98879.0,98878.0,0.3618]
[1735060976957,0.01232529,98879.0,98878.0,0.3618]
[1735060977163,0.01232529,98879.0,98861.0,0.3608]
[1735060977361,0.050617,98865.0,98850.0,0.3608]
[1735060977562,0.11816169,98860.0,98850.0,0.3608]
[1735060978059,0.050625,98850.0,98840.0,0.3608]
[1735060978263,0.3608,98854.0,98840.0,0.3608]
[1735060978264,0.050628,98843.0,98840.0,0.3608]
[1735060979759,0.050628,98843.0,98840.0,0.3638]
[1735060980264,0.3608,98842.0,98840.0,0.003]
[1735060981369,0.3608,98842.0,98840.0,0.002]
[1735060982165,0.3608,98842.0,98840.0,0.004]
[1735060982964,0.09049286,98841.0,98840.0,0.004]
[1735060984369,0.3608,98842.0,98840.0,0.004]
[1735060985257,0.3608,98842.0,98840.0,0.005]
[1735060985467,0.050629,98841.0,98800.0,0.3608]
[1735060985659,0.05064,98820.0,98800.0,0.3608]
[1735060986053,0.4794817,98825.0,98807.0,0.050646]
[1735060986254,0.47896169,98825.0,98813.0,0.050643]
[1735060986459,0.47896169,98825.0,98800.0,0.47896169]
[1735060986460,0.09052097,98827.0,98826.0,0.050636]
[1735060987662,0.12065828,98833.0,98826.0,0.06390861]
[1735060987869,0.11816169,98840.0,98832.0,0.3608]
[1735060989065,0.11916169,98840.0,98832.0,0.3708]
[1735060989268,0.050632,98835.0,98832.0,0.3708]
[1735060989660,0.050632,98834.0,98832.0,0.3628]
[1735060989964,0.3608,98833.0,98832.0,0.002]
[1735060990169,0.3608,98833.0,98811.0,0.3608]
[1735060990374,0.11816169,98821.0,98811.0,0.3608]
[1735060991871,0.11916169,98821.0,98811.0,0.3668]
[1735060992071,0.001,98821.0,98811.0,0.3738]
[1735060992365,0.050641,98818.0,98811.0,0.3738]
[1735060992761,0.050641,98818.0,98811.0,0.3678]
[1735060992961,0.050641,98818.0,98811.0,0.3668]
[1735060993270,0.050641,98818.0,98811.0,0.3738]
[1735060993962,0.11916169,98821.0,98811.0,0.3738]
[1735060994163,0.001,98821.0,98811.0,0.3738]
[1735060994672,0.001,98818.0,98811.0,0.3688]
[1735060995065,0.1053,98824.0,98811.0,0.3638]
[1735060995271,0.001,98821.0,98811.0,0.3668]
[1735060995480,0.001,98821.0,98811.0,0.3708]
[1735060995769,0.160131,98838.0,98822.0,0.050638]
[1735060995967,0.4689,98844.0,98822.0,0.050638]
[1735060996277,0.050629,98841.0,98822.0,0.050638]
[1735060996475,0.09052097,98842.0,98836.0,0.3608]
[1735060997575,0.46946001,98844.0,98836.0,0.3608]
[1735060997878,0.01304375,98851.0,98836.0,0.3608]
[1735060998070,0.3608,98853.0,98841.0,0.11816169]
[1735060998876,0.3608,98853.0,98845.0,0.3608]
[1735060999063,0.3618,98853.0,98845.0,0.3608]
[1735060999572,0.050625,98848.0,98845.0,0.3608]
[1735060999762,0.050626,98847.0,98845.0,0.3608]
[1735061000167,0.050628,98842.0,98841.0,0.008]
[1735061000374,0.050631,98837.0,98836.0,0.002]
[1735061000569,0.05063,98839.0,98811.0,0.01292619]
[1735061000762,0.050635,98829.0,98811.0,0.01292619]
[1735061000961,1.5,98837.0,98811.0,0.06357019]
[1735061001161,0.050636,98827.0,98811.0,0.06357019]
[1735061001671,0.050636,98827.0,98817.0,0.3608]
[1735061002176,0.3608,98832.0,98820.0,0.050639]
[1735061002365,0.001,98827.0,98820.0,0.050639]
[1735061002767,0.41199401,98832.0,98820.0,0.050639]
[1735061002980,0.001,98827.0,98820.0,0.050639]
[1735061003677,0.001,98827.0,98821.0,0.050639]
[1735061004886,0.050632,98835.0,98821.0,0.050639]
[1735061005175,0.001,98827.0,98821.0,0.006]
[1735061006071,0.050634,98830.0,98821.0,0.006]
[1735061007669,0.050638,98823.0,98821.0,0.006]
[1735061007874,0.05064,98819.0,98817.0,0.3608]
[1735061008175,0.3608,98821.0,98812.0,0.29698147]
[1735061008580,0.3608,98821.0,98811.0,0.3608]
[1735061008783,0.050641,98818.0,98811.0,0.3608]
[1735061009169,0.050641,98818.0,98806.0,0.31357638]
[1735061009881,0.050641,98818.0,98806.0,0.01659491]
[1735061010065,0.050641,98818.0,98804.0,0.29698147]
[1735061010488,0.3618,98821.0,98811.0,0.008]
[1735061010489,0.050641,98817.0,98811.0,0.008]
[1735061011075,0.001,98818.0,98811.0,0.008]
[1735061011378,0.002,98818.0,98817.0,0.3608]
[1735061011774,0.001,98818.0,98817.0,0.3608]
[1735061012275,0.001,98818.0,98817.0,0.4696]
[1735061012579,0.1151,98840.0,98818.0,0.05064]
[1735061012778,0.1151,98840.0,98826.0,0.3608]
[1735061012779,0.050631,98837.0,98826.0,0.3608]
[1735061013682,0.01844498,98836.0,98826.0,0.3608]
[1735061013988,0.01844498,98835.0,98826.0,0.3608]
[1735061014175,0.01844498,98834.0,98826.0,0.3608]
[1735061014483,0.01844498,98833.0,98826.0,0.3658]
[1735061014673,0.01844498,98832.0,98826.0,0.3658]
[1735061014871,0.01844498,98831.0,98826.0,0.3658]
[1735061015074,0.01844498,98830.0,98826.0,0.3658]
[1735061015275,0.01844498,98829.0,98826.0,0.3658]
[1735061015479,0.01844498,98828.0,98826.0,0.3658]
[1735061015674,0.01844498,98827.0,98826.0,0.3658]
[1735061016577,0.001,98832.0,98826.0,0.3658]
[1735061016983,0.01841437,98831.0,98830.0,0.050634]
[1735061017371,0.00708245,98831.0,98830.0,0.050634]
[1735061017580,0.09052097,98845.0,98830.0,0.050634]
[1735061017781,0.01841346,98831.0,98830.0,0.050634]
[1735061018283,0.01133136,98831.0,98830.0,0.050634]
[1735061018483,0.001,98832.0,98830.0,0.050634]
[1735061018693,0.001,98831.0,98830.0,0.050634]
[1735061019786,0.001,98831.0,98830.0,0.054634]
[1735061020187,0.01945664,98831.0,98830.0,0.054634]
[1735061020386,0.01945664,98831.0,98830.0,0.050634]
[1735061020575,0.01945664,98831.0,98830.0,0.054634]
[1735061020576,0.00809871,98831.0,98830.0,0.054634]
[1735061020883,0.02656248,98831.0,98830.0,0.054634]
[1735061021079,0.01946377,98831.0,98830.0,0.054634]
[1735061021279,0.01946377,98831.0,98830.0,0.004]
[1735061021480,0.01946674,98831.0,98830.0,0.004]
[1735061023072,0.01846674,98831.0,98830.0,0.004]
[1735061023385,0.01946674,98831.0,98830.0,0.004]
[1735061023575,0.01946674,98831.0,98827.0,0.1145]
[1735061023777,0.01846674,98830.0,98827.0,0.1145]
[1735061023980,0.01846674,98829.0,98827.0,0.1145]
[1735061024179,0.01846674,98828.0,98827.0,0.1145]
[1735061026281,0.01846674,98828.0,98827.0,0.1185]
[1735061026583,0.12065828,98854.0,98853.0,0.050623]
[1735061026785,0.11016386,98854.0,98853.0,0.411423]
[1735061026983,0.09439216,98854.0,98853.0,0.411423]
[1735061027183,0.15127828,98863.0,98862.0,0.050618]
[1735061027386,0.15127828,98863.0,98862.0,0.411418]
[1735061027781,0.1085,98876.0,98867.0,0.050615]
[1735061028087,0.1085,98876.0,98875.0,0.3608]
[1735061030183,0.4175,98876.0,98869.0,0.23787447]
[1735061030396,0.4175,98876.0,98866.0,0.23771731]
[1735061030397,0.050615,98867.0,98866.0,0.23771731]
[1735061030785,1.550615,98867.0,98866.0,0.23771731]
[1735061031591,0.050617,98865.0,98862.0,0.3608]
[1735061031792,0.1076,98866.0,98862.0,0.3608]
[1735061033091,0.013,98867.0,98862.0,0.3608]
[1735061033292,0.004,98867.0,98865.0,0.050616]
[1735061033589,0.012,98866.0,98865.0,0.050616]
[1735061034195,0.009,98866.0,98865.0,0.050616]
[1735061034498,0.012,98867.0,98865.0,0.050616]
[1735061035186,0.012,98867.0,98866.0,0.050616]
[1735061035389,0.0157717,98888.0,98880.0,0.050609]
[1735061035582,0.0157717,98888.0,98884.0,0.3608]
[1735061035800,0.0908335,98899.0,98887.0,0.050605]
[1735061036389,0.0908335,98899.0,98884.0,0.3608]
[1735061036390,0.211,98900.0,98884.0,0.3608]
[1735061036596,0.1,98900.0,98889.0,0.050604]
[1735061037389,0.106,98900.0,98887.0,0.050605]
[1735061037788,0.106,98900.0,98888.0,0.050605]
[1735061038001,0.009,98899.0,98888.0,0.050605]
[1735061038297,0.009,98899.0,98889.0,0.22751336]
[1735061038498,0.00689281,98898.0,98894.0,0.411402]
[1735061038697,0.00689252,98897.0,98895.0,0.050601]
[1735061038902,0.00689252,98896.0,98895.0,0.050601]
[1735061039597,0.00689252,98899.0,98894.0,0.3608]
[1735061039796,0.00689252,98898.0,98896.0,0.0506]
[1735061039993,0.00689252,98897.0,98896.0,0.0506]
[1735061040405,0.00689318,98897.0,98896.0,0.0506]
[1735061040996,0.00689318,98897.0,98896.0,0.0556]
[1735061040997,0.00689319,98897.0,98896.0,0.0556]
[1735061042399,0.00689319,98897.0,98896.0,0.0546]
[1735061042597,0.00689319,98897.0,98896.0,0.0576]
[1735061042799,0.00689319,98897.0,98896.0,0.0536]
[1735061043003,0.00789319,98897.0,98896.0,0.0616]
[1735061043302,0.00789319,98897.0,98896.0,0.0636]
[1735061043601,0.00689319,98897.0,98896.0,0.0596]
[1735061043998,0.00689319,98897.0,98896.0,0.0556]
[1735061044198,0.00689319,98897.0,98896.0,0.0576]
[1735061044600,0.00056001,98936.0,98896.0,0.307]
[1735061044804,0.1414145,98935.0,98920.0,0.3608]
[1735061045103,0.0908335,98935.0,98920.0,0.3608]
[1735061045503,0.2236,98938.0,98920.0,0.3608]
[1735061045702,0.2236,98938.0,98921.0,0.050588]
[1735061046294,0.008,98935.0,98921.0,0.050588]
[1735061046499,0.008,98935.0,98920.0,0.3618]
[1735061046500,0.01,98935.0,98920.0,0.3618]
[1735061046894,0.01,98935.0,98920.0,0.3608]
[1735061046895,0.002,98935.0,98920.0,0.3608]
[1735061047297,0.05058,98937.0,98920.0,0.3608]
[1735061047704,0.05058,98937.0,98920.0,0.411388]
[1735061048601,0.004,98935.0,98922.0,0.050587]
[1735061049006,0.05458,98937.0,98922.0,0.050587]
[1735061049700,0.05458,98937.0,98920.0,0.3608]
[1735061049902,0.05458,98937.0,98923.0,0.050587]
[1735061050101,0.005,98935.0,98927.0,0.050585]
[1735061050507,0.005,98935.0,98928.0,0.050584]
[1735061050508,1.5,98934.0,98928.0,0.050584]
[1735061051295,0.005,98935.0,98928.0,0.050584]
[1735061051703,0.001,98937.0,98928.0,0.050584]
[1735061051908,1.5,98936.0,98928.0,0.050584]
[1735061052503,0.008,98935.0,98929.0,0.050583]
[1735061052797,0.01,98935.0,98934.0,0.050581]
[1735061053104,0.00832166,98935.0,98934.0,0.050581]
[1735061053309,0.00632166,98935.0,98934.0,0.050581]
[1735061054910,0.01732166,98935.0,98934.0,0.050581]
[1735061055413,0.00932166,98935.0,98934.0,0.050581]
[1735061056815,0.01611638,98935.0,98934.0,0.050581]
[1735061061714,0.01611638,98935.0,98928.0,0.00112]
[1735061061912,0.01611638,98935.0,98920.0,0.3608]
[1735061061913,0.24731638,98934.0,98920.0,0.3608]
[1735061062111,0.00679472,98933.0,98920.0,0.411388]
[1735061062323,0.00679472,98932.0,98920.0,0.411388]
[1735061062511,0.00679472,98931.0,98920.0,0.411388]
[1735061062712,0.00679472,98930.0,98920.0,0.411388]
[1735061062907,0.00679472,98929.0,98920.0,0.411388]
[1735061063109,0.00679472,98928.0,98920.0,0.3608]
[1735061063311,0.11778777,98930.0,98894.0,0.3608]
[1735061063312,0.3608,98921.0,98894.0,0.3608]
[1735061063513,0.3608,98913.0,98902.0,0.050597]
[1735061063715,0.00679472,98912.0,98902.0,0.050597]
[1735061063914,0.00679472,98911.0,98900.0,0.11778777]
[1735061064126,0.00679472,98910.0,98900.0,0.11778777]
[1735061064313,0.00679472,98909.0,98900.0,0.11778777]
[1735061064619,0.00679472,98908.0,98898.0,0.0506]
[1735061064820,0.00679472,98907.0,98902.0,0.003]
[1735061065021,0.00680367,98906.0,98902.0,0.003]
[1735061065207,0.00680367,98905.0,98902.0,0.003]
[1735061065414,0.00680367,98904.0,98902.0,0.003]
[1735061065614,0.00680367,98903.0,98898.0,0.0506]
[1735061065823,0.00680367,98902.0,98900.0,0.004]
[1735061066017,0.00680367,98901.0,98900.0,0.004]
[1735061067315,0.00680367,98901.0,98900.0,0.005]
[1735061067512,0.00680816,98901.0,98900.0,0.005]
[1735061068224,0.00680816,98901.0,98900.0,0.059599]
[1735061070613,0.00681531,98901.0,98900.0,0.059599]
[1735061072414,0.00681531,98901.0,98900.0,0.054599]
[1735061072614,0.00681531,98901.0,98900.0,0.059599]
[1735061073424,0.00681531,98901.0,98900.0,0.055599]
[1735061073726,0.00681296,98901.0,98900.0,0.059599]
[1735061074025,0.050601,98895.0,98894.0,0.36196]
[1735061074215,0.00681314,98895.0,98894.0,0.3608]
[1735061074628,0.00681314,98895.0,98894.0,0.411402]
[1735061075126,0.00681314,98895.0,98894.0,0.416402]
[1735061075326,0.02255763,98895.0,98894.0,0.416402]
[1735061075628,0.00681314,98895.0,98894.0,0.43481931]
[1735061076017,0.00782789,98895.0,98894.0,0.43981931]
[1735061076619,0.00782743,98895.0,98894.0,0.43881931]
[1735061077223,0.00782743,98895.0,98894.0,0.43481931]
[1735061077423,0.00782743,98895.0,98894.0,0.43881931]
[1735061079525,0.00781649,98895.0,98894.0,0.43881931]
[1735061079834,0.00562632,98895.0,98894.0,0.43881931]
[1735061080029,0.0908335,98916.0,98901.0,0.050598]
[1735061080030,0.01574449,98908.0,98901.0,0.050598]
[1735061080235,0.01574449,98908.0,98907.0,0.411395]
[1735061080528,0.0908335,98916.0,98907.0,0.411395]
[1735061080529,0.01573714,98909.0,98908.0,0.050594]
[1735061080726,0.01573714,98911.0,98907.0,0.3608]
[1735061080938,0.1123,98923.0,98910.0,0.050593]
[1735061081227,0.050589,98918.0,98907.0,0.3608]
[1735061081527,0.17681205,98920.0,98907.0,0.3608]
[1735061081733,0.050595,98907.0,98901.0,0.003]
[1735061081935,0.2179,98906.0,98901.0,0.003]
[1735061082431,0.0157378,98903.0,98894.0,0.3648]
[1735061082825,0.0157378,98904.0,98900.0,0.050598]
[1735061083020,0.0157378,98904.0,98901.0,0.052598]
[1735061083227,0.0157378,98903.0,98901.0,0.052598]
[1735061083732,0.0157378,98905.0,98901.0,0.052598]
[1735061083931,0.2336378,98906.0,98901.0,0.052598]
[1735061084132,0.2336378,98906.0,98901.0,0.002]
[1735061084328,0.0157378,98905.0,98901.0,0.002]
[1735061084536,0.2336378,98906.0,98900.0,0.003]
[1735061084727,0.2336378,98906.0,98894.0,0.42899297]
[1735061084728,0.001,98903.0,98901.0,0.002]
[1735061085230,0.2336378,98906.0,98901.0,0.005]
[1735061085439,0.2179,98906.0,98901.0,0.005]
[1735061085626,0.2179,98906.0,98901.0,0.002]
[1735061086321,0.2179,98906.0,98901.0,0.004]
[1735061086521,0.0157378,98911.0,98901.0,0.004]
[1735061086721,0.0157378,98909.0,98908.0,0.050594]
[1735061086929,0.0157378,98912.0,98908.0,0.050594]
[1735061087727,0.0157378,98913.0,98908.0,0.050594]
[1735061087931,0.001,98909.0,98908.0,0.051594]
[1735061088337,0.0157378,98911.0,98908.0,0.051594]
[1735061088532,0.0157378,98910.0,98908.0,0.001]
[1735061089039,0.001,98909.0,98908.0,0.001]
[1735061089735,0.051593,98911.0,98908.0,0.001]
[1735061090330,0.051593,98911.0,98897.0,0.0506]
[1735061090528,0.17681205,98910.0,98897.0,0.0506]
[1735061090732,0.01576537,98905.0,98897.0,0.0506]
[1735061091235,0.01576537,98900.0,98897.0,0.0506]
[1735061091435,0.01576537,98900.0,98894.0,0.42899197]
[1735061091738,0.01576537,98900.0,98898.0,0.050599]
[1735061091940,0.00675474,98899.0,98898.0,0.050599]
[1735061093051,0.00675474,98899.0,98898.0,0.047099]
[1735061093538,0.00675474,98899.0,98898.0,0.050099]
[1735061094346,0.00675474,98899.0,98898.0,0.003]
[1735061094543,0.00675474,98899.0,98898.0,0.006]
[1735061094840,0.0067621,98899.0,98898.0,0.006]
[1735061095039,0.0067621,98899.0,98898.0,0.003]
[1735061095336,0.0067621,98899.0,98898.0,0.006]
[1735061095548,0.0067621,98899.0,98898.0,0.003]
[1735061095743,0.01847201,98899.0,98898.0,0.005]
[1735061096246,0.01847201,98899.0,98898.0,0.2301]
[1735061096429,0.01847201,98899.0,98898.0,0.2281]
[1735061096738,0.015787,98910.0,98899.0,0.050599]
[1735061096943,0.015787,98911.0,98909.0,0.411394]
[1735061097147,0.015787,98913.0,98912.0,0.050592]
[1735061097332,0.015787,98913.0,98909.0,0.3608]
[1735061097541,0.015787,98913.0,98910.0,0.050593]
[1735061098142,0.015787,98913.0,98912.0,0.29750669]
[1735061098340,0.015787,98914.0,98912.0,0.29750669]
[1735061098536,0.003,98913.0,98912.0,0.29750669]
[1735061099046,0.018787,98913.0,98912.0,0.29750669]
[1735061099343,0.003,98913.0,98912.0,0.29750669]
[1735061099543,0.003,98913.0,98910.0,0.050593]
[1735061099544,0.004,98913.0,98911.0,0.29750669]
[1735061100148,0.054592,98913.0,98911.0,0.29750669]
[1735061100341,0.3305,98912.0,98911.0,0.29750669]
[1735061100851,0.3305,98912.0,98910.0,0.27929528]
[1735061101047,0.050593,98911.0,98910.0,0.27929528]
[1735061101738,0.050593,98911.0,98910.0,0.24767654]
[1735061102141,0.3305,98912.0,98895.0,0.01639863]
[1735061102346,0.003,98913.0,98904.0,0.050597]
[1735061102643,0.003,98913.0,98912.0,0.050592]
[1735061103945,0.0157764,98915.0,98912.0,0.050592]
[1735061105348,0.003,98913.0,98912.0,0.050592]
[1735061105549,0.003,98913.0,98905.0,0.1075]
[1735061105741,0.0157764,98916.0,98908.0,0.050594]
[1735061105946,0.0187764,98915.0,98908.0,0.050594]
[1735061107048,0.0187764,98915.0,98910.0,0.050593]
[1735061107242,0.003,98915.0,98910.0,0.050593]
[1735061107444,0.0157764,98916.0,98915.0,0.050591]
[1735061107653,0.0157764,98919.0,98918.0,0.050589]
[1735061108150,0.0157764,98921.0,98920.0,0.050588]
[1735061108350,0.0157764,98922.0,98920.0,0.050588]
[1735061108552,0.3608,98924.0,98920.0,0.050588]
[1735061108742,0.3608,98924.0,98914.0,0.3608]
[1735061108743,0.001,98916.0,98914.0,0.3608]
[1735061108944,0.001,98916.0,98915.0,0.050591]
[1735061109144,0.0089733,98916.0,98915.0,0.056591]
[1735061109555,0.0079733,98916.0,98915.0,0.056591]
[1735061110655,0.0069733,98916.0,98915.0,0.050591]
[1735061111048,0.0079733,98916.0,98915.0,0.050591]
[1735061111557,0.00897707,98916.0,98915.0,0.056591]
[1735061111848,0.00797707,98916.0,98915.0,0.050591]
[1735061112056,0.00897768,98916.0,98915.0,0.056591]
[1735061112250,0.00897768,98916.0,98915.0,0.006]
[1735061112440,0.00897768,98916.0,98915.0,0.02248812]
[1735061112639,0.00897768,98916.0,98915.0,0.006]
[1735061113052,0.02475027,98916.0,98915.0,0.006]
[1735061113443,0.00897768,98916.0,98915.0,0.006]
[1735061113650,0.00897768,98916.0,98915.0,0.050591]
[1735061113651,0.00797768,98916.0,98915.0,0.050591]
[1735061113849,0.00897768,98916.0,98915.0,0.056591]
[1735061115849,0.00897768,98916.0,98915.0,0.006]
[1735061116852,0.00897768,98916.0,98915.0,0.056591]
[1735061119256,0.00797768,98916.0,98915.0,0.056591]
[1735061119557,0.00897768,98916.0,98915.0,0.056591]
[1735061120659,0.00796304,98916.0,98915.0,0.050591]
[1735061120860,0.00896304,98916.0,98915.0,0.056591]
[1735061121050,0.00896167,98916.0,98915.0,0.056591]
[1735061122854,0.00896167,98916.0,98915.0,0.054591]
[1735061123754,0.00896486,98916.0,98915.0,0.054591]
[1735061127460,0.00896486,98916.0,98915.0,0.415391]
[1735061129652,0.00897092,98916.0,98915.0,0.415391]
[1735061130168,0.00897741,98916.0,98915.0,0.415391]
[1735061131365,0.01577086,98928.0,98915.0,0.715391]
[1735061131567,0.09087423,98934.0,98933.0,0.050582]
[1735061131859,0.02883145,98934.0,98933.0,0.050582]
[1735061132050,0.120942,98937.0,98936.0,0.05058]
[1735061132250,0.11558281,98937.0,98936.0,0.05058]
[1735061132465,0.15127828,98946.0,98945.0,0.050576]
[1735061132764,0.15127828,98946.0,98945.0,0.411376]
[1735061133363,0.1143,98965.0,98948.0,0.050574]
[1735061133561,0.1143,98965.0,98950.0,0.11790804]
[1735061134266,0.1143,98965.0,98950.0,0.16848104]
[1735061134469,0.117,98963.0,98950.0,0.16848104]
[1735061134964,0.12,98963.0,98950.0,0.16848104]
[1735061135167,0.12,98963.0,98950.0,0.19254962]
[1735061136068,0.050572,98952.0,98950.0,0.009]
[1735061136367,0.3608,98953.0,98950.0,0.009]
[1735061136768,0.411372,98953.0,98950.0,0.009]
[1735061137257,0.005,98952.0,98950.0,0.009]